[Event "Early-Titled-Tuesday-Blitz-September-12-2023"]
[Site "Chess.com"]
[Date "2023.09.12"]
[Round "5"]
[White "ChessTankMan"]
[Black "OparinGrigoriy"]
[Result "0-1"]
[WhiteElo "2524"]
[BlackElo "3009"]
[TimeControl "180+1"]
[EndTime "8:54:26 PDT"]
[Termination "OparinGrigoriy won by resignation"]

1. e4 {[%clk 0:03:00.9]} 1... c5 {[%clk 0:03:00.6]} 2. Nf3 {[%clk 0:03:00.5]}
2... Nc6 {[%clk 0:03:00.9]} 3. Bb5 {[%clk 0:02:59.9]} 3... e6 {[%clk 0:03:01.4]}
4. Bxc6 {[%clk 0:02:54.8]} 4... bxc6 {[%clk 0:03:01.5]} 5. O-O {[%clk
0:02:54.5]} 5... f6 {[%clk 0:02:49.1]} 6. e5 {[%clk 0:02:52.9]} 6... Ne7 {[%clk
0:02:45.6]} 7. Qe2 {[%clk 0:02:51.2]} 7... Ng6 {[%clk 0:02:44.4]} 8. d3 {[%clk
0:02:39.5]} 8... Qc7 {[%clk 0:02:37.5]} 9. Re1 {[%clk 0:02:11.2]} 9... fxe5
{[%clk 0:02:34.9]} 10. Nxe5 {[%clk 0:02:05.2]} 10... Qxe5 {[%clk 0:02:32.8]} 11.
Qxe5 {[%clk 0:02:03.1]} 11... Nxe5 {[%clk 0:02:33.7]} 12. Rxe5 {[%clk
0:02:03.2]} 12... d6 {[%clk 0:02:34.2]} 13. Re1 {[%clk 0:02:02.8]} 13... Kd7
{[%clk 0:02:34.6]} 14. b3 {[%clk 0:01:59]} 14... Be7 {[%clk 0:02:31]} 15. Bb2
{[%clk 0:01:59.6]} 15... e5 {[%clk 0:02:30.8]} 16. Nd2 {[%clk 0:01:59.3]} 16...
Rf8 {[%clk 0:02:26.9]} 17. Rad1 {[%clk 0:01:55.3]} 17... Kc7 {[%clk 0:02:18.6]}
18. c3 {[%clk 0:01:54.8]} 18... Bf6 {[%clk 0:02:07.9]} 19. Ne4 {[%clk
0:01:35.5]} 19... Bf5 {[%clk 0:02:07.9]} 20. Ng3 {[%clk 0:01:22.5]} 20... Bg6
{[%clk 0:02:05.5]} 21. d4 {[%clk 0:01:20.2]} 21... exd4 {[%clk 0:02:00.9]} 22.
cxd4 {[%clk 0:01:19.8]} 22... Rae8 {[%clk 0:02:01.3]} 23. Kf1 {[%clk 0:00:54.7]}
23... Rxe1+ {[%clk 0:02:00.4]} 24. Kxe1 {[%clk 0:00:54.6]} 24... Re8+ {[%clk
0:02:01]} 25. Kf1 {[%clk 0:00:50.3]} 25... d5 {[%clk 0:01:43.8]} 26. Ne2 {[%clk
0:00:43.4]} 26... c4 {[%clk 0:01:42.5]} 27. bxc4 {[%clk 0:00:26.2]} 27... dxc4
{[%clk 0:01:43.4]} 28. Nf4 {[%clk 0:00:26.2]} 28... Bf7 {[%clk 0:01:41.9]} 29.
Bc3 {[%clk 0:00:20.4]} 29... g5 {[%clk 0:01:37]} 30. Ne2 {[%clk 0:00:15.8]}
30... Bg6 {[%clk 0:01:37.3]} 31. Nc1 {[%clk 0:00:15.7]} 31... g4 {[%clk
0:01:26.1]} 32. f3 {[%clk 0:00:06.2]} 32... gxf3 {[%clk 0:01:17.6]} 33. gxf3
{[%clk 0:00:07.1]} 33... Kd6 {[%clk 0:01:08.8]} 34. Bb4+ {[%clk 0:00:06.5]}
34... Kd5 {[%clk 0:01:06.3]} 35. Bc3 {[%clk 0:00:03.2]} 35... Bg5 {[%clk
0:01:03.3]} 36. Kf2 {[%clk 0:00:02.1]} 36... Be3+ {[%clk 0:01:03]} 37. Kg2
{[%clk 0:00:01.9]} 37... Rg8 {[%clk 0:00:52.5]} 38. h4 {[%clk 0:00:01.9]} 38...
Bc2+ {[%clk 0:00:52]} 39. Kf1 {[%clk 0:00:02.1]} 0-1

[Event "Early-Titled-Tuesday-Blitz-September-12-2023"]
[Site "Chess.com"]
[Date "2023.09.12"]
[Round "5"]
[White "maurovargas01"]
[Black "supereagles1201"]
[Result "0-1"]
[WhiteElo "1866"]
[BlackElo "2382"]
[TimeControl "180+1"]
[EndTime "8:54:31 PDT"]
[Termination "supereagles1201 won on time"]

1. e4 {[%clk 0:02:59.5]} 1... c5 {[%clk 0:02:59.9]} 2. Nc3 {[%clk 0:02:58.8]}
2... Nc6 {[%clk 0:02:58.1]} 3. f4 {[%clk 0:02:59.7]} 3... g6 {[%clk 0:02:57.8]}
4. Nf3 {[%clk 0:03:00.6]} 4... Bg7 {[%clk 0:02:58.3]} 5. Bb5 {[%clk 0:03:00.9]}
5... Nd4 {[%clk 0:02:57.5]} 6. Bf1 {[%clk 0:02:59.9]} 6... d6 {[%clk 0:02:53.9]}
7. d3 {[%clk 0:03:00.1]} 7... Bg4 {[%clk 0:02:53.1]} 8. Be2 {[%clk 0:02:55.6]}
8... Bxf3 {[%clk 0:02:48.5]} 9. Bxf3 {[%clk 0:02:53.3]} 9... e6 {[%clk
0:02:47.2]} 10. O-O {[%clk 0:02:49.8]} 10... Ne7 {[%clk 0:02:46.6]} 11. Ne2
{[%clk 0:02:46.5]} 11... Nec6 {[%clk 0:02:45.6]} 12. c3 {[%clk 0:02:45.8]} 12...
Nxf3+ {[%clk 0:02:44.1]} 13. Rxf3 {[%clk 0:02:46.7]} 13... O-O {[%clk
0:02:42.1]} 14. Qe1 {[%clk 0:02:44.5]} 14... b5 {[%clk 0:02:38.6]} 15. Rh3
{[%clk 0:02:43.3]} 15... b4 {[%clk 0:02:33.5]} 16. Bd2 {[%clk 0:02:29.8]} 16...
bxc3 {[%clk 0:02:31.4]} 17. Bxc3 {[%clk 0:02:27.2]} 17... Nd4 {[%clk 0:02:31.1]}
18. Rc1 {[%clk 0:02:20.7]} 18... Rb8 {[%clk 0:02:28.8]} 19. Kh1 {[%clk
0:02:16.3]} 19... Qb6 {[%clk 0:02:15.1]} 20. Qh4 {[%clk 0:02:07.8]} 20... h6
{[%clk 0:02:09.2]} 21. Ng1 {[%clk 0:01:50.4]} 21... Qd8 {[%clk 0:02:00.5]} 22.
Qf2 {[%clk 0:01:36.4]} 22... a5 {[%clk 0:01:36.8]} 23. Nf3 {[%clk 0:01:34.2]}
23... Nxf3 {[%clk 0:01:30]} 24. Rxf3 {[%clk 0:01:29.8]} 24... Bxc3 {[%clk
0:01:25]} 25. bxc3 {[%clk 0:01:26.5]} 25... Qf6 {[%clk 0:01:18.6]} 26. f5 {[%clk
0:01:22.5]} 26... gxf5 {[%clk 0:01:07.3]} 27. exf5 {[%clk 0:01:21]} 27... e5
{[%clk 0:01:06.8]} 28. Qe3 {[%clk 0:00:52.6]} 28... Kh7 {[%clk 0:01:06.3]} 29.
Rh3 {[%clk 0:00:39.3]} 29... Rg8 {[%clk 0:01:05.8]} 30. d4 {[%clk 0:00:20.4]}
30... Rb2 {[%clk 0:01:04.1]} 31. Rg3 {[%clk 0:00:17.7]} 31... Rxg3 {[%clk
0:01:00.6]} 32. Qxg3 {[%clk 0:00:15.3]} 32... exd4 {[%clk 0:00:57.5]} 33. cxd4
{[%clk 0:00:13.9]} 33... Qxd4 {[%clk 0:00:57.4]} 34. Re1 {[%clk 0:00:07.3]}
34... Qf2 {[%clk 0:00:53.9]} 35. Rg1 {[%clk 0:00:01.4]} 35... Qxg3 {[%clk
0:00:49.6]} 36. hxg3 {[%clk 0:00:02.3]} 36... d5 {[%clk 0:00:47.5]} 0-1

[Event "Early-Titled-Tuesday-Blitz-September-12-2023"]
[Site "Chess.com"]
[Date "2023.09.12"]
[Round "5"]
[White "LamaChampetre"]
[Black "jcmesafischer"]
[Result "1-0"]
[WhiteElo "2267"]
[BlackElo "2382"]
[TimeControl "180+1"]
[EndTime "8:54:31 PDT"]
[Termination "LamaChampetre won by resignation"]

1. d4 {[%clk 0:02:57.7]} 1... Nf6 {[%clk 0:02:03]} 2. c4 {[%clk 0:02:49.9]} 2...
e6 {[%clk 0:02:02.4]} 3. Nf3 {[%clk 0:02:50]} 3... d5 {[%clk 0:02:02.1]} 4. g3
{[%clk 0:02:50.6]} 4... Be7 {[%clk 0:02:01.7]} 5. Bg2 {[%clk 0:02:51.2]} 5...
O-O {[%clk 0:02:02.4]} 6. O-O {[%clk 0:02:51.8]} 6... dxc4 {[%clk 0:02:02.8]} 7.
Ne5 {[%clk 0:02:51.2]} 7... Nc6 {[%clk 0:02:02.3]} 8. Bxc6 {[%clk 0:02:51.3]}
8... bxc6 {[%clk 0:02:02.4]} 9. Nxc6 {[%clk 0:02:52.2]} 9... Qd7 {[%clk
0:02:03]} 10. Nxe7+ {[%clk 0:02:52.1]} 10... Qxe7 {[%clk 0:02:03.9]} 11. Qa4
{[%clk 0:02:51.5]} 11... Rb8 {[%clk 0:02:04.1]} 12. Qxc4 {[%clk 0:02:41.5]}
12... Rb4 {[%clk 0:02:03.9]} 13. Qc2 {[%clk 0:02:41.2]} 13... Rxd4 {[%clk
0:01:17.2]} 14. Be3 {[%clk 0:02:37]} 14... Rd5 {[%clk 0:01:11.3]} 15. Bxa7
{[%clk 0:02:27.5]} 15... Bb7 {[%clk 0:01:07.9]} 16. Nc3 {[%clk 0:02:18.8]} 16...
Rh5 {[%clk 0:01:00.9]} 17. f3 {[%clk 0:02:08.9]} 17... Qb4 {[%clk 0:00:41.2]}
18. Bf2 {[%clk 0:01:54.8]} 18... Rb8 {[%clk 0:00:20.6]} 19. Rab1 {[%clk
0:01:41.9]} 19... e5 {[%clk 0:00:20.5]} 20. e4 {[%clk 0:01:36.5]} 20... Nd7
{[%clk 0:00:17.4]} 21. Nd5 {[%clk 0:01:27.5]} 21... Bxd5 {[%clk 0:00:17]} 22.
exd5 {[%clk 0:01:27.9]} 22... Qb7 {[%clk 0:00:11.7]} 23. Rfc1 {[%clk 0:01:24.7]}
23... Qxd5 {[%clk 0:00:11.5]} 24. Qxc7 {[%clk 0:01:22.1]} 24... Re8 {[%clk
0:00:11.1]} 25. Rd1 {[%clk 0:01:19.9]} 25... Qxf3 {[%clk 0:00:09.5]} 26. Qxd7
{[%clk 0:01:19.8]} 26... Rf8 {[%clk 0:00:09.4]} 27. Qe7 {[%clk 0:00:49]} 27...
Rf5 {[%clk 0:00:08.8]} 28. Rf1 {[%clk 0:00:38.3]} 28... h5 {[%clk 0:00:08.2]}
29. Bc5 {[%clk 0:00:35.9]} 29... Qa8 {[%clk 0:00:02.5]} 30. Qxf8+ {[%clk
0:00:26.8]} 1-0

[Event "Early-Titled-Tuesday-Blitz-September-12-2023"]
[Site "Chess.com"]
[Date "2023.09.12"]
[Round "5"]
[White "Chaos_Magic"]
[Black "Rurep26"]
[Result "0-1"]
[WhiteElo "2367"]
[BlackElo "2784"]
[TimeControl "180+1"]
[EndTime "8:54:33 PDT"]
[Termination "Rurep26 won on time"]

1. d4 {[%clk 0:03:00.9]} 1... e6 {[%clk 0:02:45.8]} 2. Nf3 {[%clk 0:02:59.8]}
2... Nf6 {[%clk 0:02:45.3]} 3. c4 {[%clk 0:02:59.8]} 3... b6 {[%clk 0:02:44.9]}
4. g3 {[%clk 0:02:59.2]} 4... Ba6 {[%clk 0:02:44.9]} 5. Qc2 {[%clk 0:02:55.4]}
5... Bb7 {[%clk 0:02:43.9]} 6. Bg2 {[%clk 0:02:55.2]} 6... Bb4+ {[%clk
0:02:42.9]} 7. Nbd2 {[%clk 0:02:54.4]} 7... O-O {[%clk 0:02:40.9]} 8. O-O {[%clk
0:02:54]} 8... Bxd2 {[%clk 0:02:40.5]} 9. Bxd2 {[%clk 0:02:52.7]} 9... Be4
{[%clk 0:02:40.7]} 10. Qc1 {[%clk 0:02:46.5]} 10... Nc6 {[%clk 0:02:36.8]} 11.
Bc3 {[%clk 0:02:43.3]} 11... d6 {[%clk 0:02:36.1]} 12. b4 {[%clk 0:02:40.3]}
12... Qc8 {[%clk 0:02:33]} 13. Rd1 {[%clk 0:02:36.9]} 13... Ne7 {[%clk
0:02:32.1]} 14. d5 {[%clk 0:02:30.5]} 14... e5 {[%clk 0:02:30.9]} 15. a4 {[%clk
0:01:58.5]} 15... a5 {[%clk 0:02:29.3]} 16. bxa5 {[%clk 0:01:55.7]} 16... bxa5
{[%clk 0:02:30.2]} 17. Qd2 {[%clk 0:01:55.7]} 17... Qa6 {[%clk 0:02:28.3]} 18.
Qa2 {[%clk 0:01:49.5]} 18... c6 {[%clk 0:02:21.5]} 19. dxc6 {[%clk 0:01:48]}
19... Qxc6 {[%clk 0:02:22.4]} 20. Rdc1 {[%clk 0:01:38.6]} 20... Rfc8 {[%clk
0:02:16.9]} 21. Qd2 {[%clk 0:01:27]} 21... Nd7 {[%clk 0:02:14.7]} 22. Bxa5
{[%clk 0:01:18.2]} 22... Nc5 {[%clk 0:02:14.1]} 23. Ra3 {[%clk 0:00:42.7]} 23...
Nb7 {[%clk 0:01:47]} 24. Bb4 {[%clk 0:00:35.3]} 24... Ra6 {[%clk 0:01:40.8]} 25.
a5 {[%clk 0:00:31.5]} 25... Rca8 {[%clk 0:01:39.4]} 26. c5 {[%clk 0:00:20.2]}
26... Nd5 {[%clk 0:01:20.5]} 27. cxd6 {[%clk 0:00:17.2]} 27... Qb5 {[%clk
0:01:20.7]} 28. Bc3 {[%clk 0:00:14]} 28... Nxd6 {[%clk 0:01:18.8]} 29. Bxe5
{[%clk 0:00:12.7]} 29... Nc4 {[%clk 0:01:16.7]} 30. Rxc4 {[%clk 0:00:10.7]}
30... Qxc4 {[%clk 0:01:17.6]} 31. Rc3 {[%clk 0:00:10.4]} 31... Nxc3 {[%clk
0:01:16.9]} 32. Bxc3 {[%clk 0:00:10]} 32... Qd5 {[%clk 0:01:13.7]} 33. Qb2
{[%clk 0:00:10]} 33... Qd1+ {[%clk 0:01:10.1]} 34. Bf1 {[%clk 0:00:10]} 34... f6
{[%clk 0:01:03.7]} 35. Nd2 {[%clk 0:00:08.8]} 35... Bf5 {[%clk 0:01:01.6]} 36.
Qa2+ {[%clk 0:00:08]} 36... Be6 {[%clk 0:01:00.3]} 37. Qb2 {[%clk 0:00:07.2]}
37... Bh3 {[%clk 0:01:00.1]} 38. Qa2+ {[%clk 0:00:06.8]} 38... Kh8 {[%clk
0:00:59.9]} 39. Qf7 {[%clk 0:00:07]} 39... Rd6 {[%clk 0:00:58.5]} 40. Qb7 {[%clk
0:00:05.4]} 40... Rad8 {[%clk 0:00:57.7]} 0-1

[Event "Early-Titled-Tuesday-Blitz-September-12-2023"]
[Site "Chess.com"]
[Date "2023.09.12"]
[Round "5"]
[White "Tsyhanchuk_Stanislav"]
[Black "WinstonSilvakov"]
[Result "1-0"]
[WhiteElo "2431"]
[BlackElo "2190"]
[TimeControl "180+1"]
[EndTime "8:54:33 PDT"]
[Termination "Tsyhanchuk_Stanislav won by resignation"]

1. e4 {[%clk 0:03:00.9]} 1... c5 {[%clk 0:02:16]} 2. c4 {[%clk 0:02:53.1]} 2...
Nc6 {[%clk 0:02:14.1]} 3. Nc3 {[%clk 0:02:53]} 3... e5 {[%clk 0:02:14.7]} 4. g3
{[%clk 0:02:52.8]} 4... d6 {[%clk 0:02:14.8]} 5. Bg2 {[%clk 0:02:53.3]} 5...
Nge7 {[%clk 0:02:14.7]} 6. Nge2 {[%clk 0:02:53.7]} 6... g6 {[%clk 0:02:14.6]} 7.
O-O {[%clk 0:02:53.5]} 7... Bg7 {[%clk 0:02:15.2]} 8. a3 {[%clk 0:02:54.1]} 8...
O-O {[%clk 0:02:15.5]} 9. Rb1 {[%clk 0:02:54.6]} 9... Nd4 {[%clk 0:02:14.6]} 10.
b4 {[%clk 0:02:44.3]} 10... Nec6 {[%clk 0:02:10.6]} 11. d3 {[%clk 0:02:36.6]}
11... Nxe2+ {[%clk 0:02:09.9]} 12. Nxe2 {[%clk 0:02:35.9]} 12... Nd4 {[%clk
0:02:10.8]} 13. Nxd4 {[%clk 0:02:34.9]} 13... cxd4 {[%clk 0:02:09]} 14. b5
{[%clk 0:02:22.3]} 14... a5 {[%clk 0:02:06.1]} 15. a4 {[%clk 0:02:04.7]} 15...
b6 {[%clk 0:02:05.6]} 16. f4 {[%clk 0:02:02.9]} 16... f6 {[%clk 0:02:02.7]} 17.
h4 {[%clk 0:01:57.5]} 17... Rf7 {[%clk 0:01:56.6]} 18. Ba3 {[%clk 0:01:51.8]}
18... Bf8 {[%clk 0:01:55.4]} 19. g4 {[%clk 0:01:25.2]} 19... Raa7 {[%clk
0:01:40.5]} 20. Qf3 {[%clk 0:01:11]} 20... Qd7 {[%clk 0:01:33.3]} 21. Bh3 {[%clk
0:00:57.1]} 21... exf4 {[%clk 0:01:22.9]} 22. Qxf4 {[%clk 0:00:56.7]} 22... h5
{[%clk 0:01:23.8]} 23. Rb2 {[%clk 0:00:17.1]} 23... hxg4 {[%clk 0:01:09.2]} 24.
Bg2 {[%clk 0:00:17.7]} 24... Kh7 {[%clk 0:01:09.1]} 25. Rbf2 {[%clk 0:00:15.9]}
25... Bh6 {[%clk 0:01:07.5]} 26. Qxd6 {[%clk 0:00:08.7]} 26... Qxd6 {[%clk
0:01:08.4]} 27. Bxd6 {[%clk 0:00:09.1]} 27... Be3 {[%clk 0:01:07.3]} 28. Kh2
{[%clk 0:00:09.7]} 28... Rab7 {[%clk 0:00:58.7]} 29. Rxf6 {[%clk 0:00:08.2]}
29... Ra7 {[%clk 0:00:56.8]} 30. Rxf7+ {[%clk 0:00:08.2]} 30... Rxf7 {[%clk
0:00:51.3]} 31. Rxf7+ {[%clk 0:00:09.1]} 31... Kh6 {[%clk 0:00:49.5]} 32. Bf8+
{[%clk 0:00:06.7]} 1-0

[Event "Early-Titled-Tuesday-Blitz-September-12-2023"]
[Site "Chess.com"]
[Date "2023.09.12"]
[Round "5"]
[White "seopie"]
[Black "Ermito2020"]
[Result "1-0"]
[WhiteElo "2836"]
[BlackElo "2587"]
[TimeControl "180+1"]
[EndTime "8:54:35 PDT"]
[Termination "seopie won on time"]

1. d4 {[%clk 0:03:00.9]} 1... Nf6 {[%clk 0:02:57.7]} 2. c4 {[%clk 0:03:01.5]}
2... g6 {[%clk 0:02:58.1]} 3. Nc3 {[%clk 0:03:01.2]} 3... Bg7 {[%clk 0:02:58.7]}
4. e4 {[%clk 0:03:01.2]} 4... d6 {[%clk 0:02:59.3]} 5. Be2 {[%clk 0:02:56.4]}
5... O-O {[%clk 0:02:59.4]} 6. Be3 {[%clk 0:02:54.6]} 6... c5 {[%clk 0:02:55.8]}
7. d5 {[%clk 0:02:53.9]} 7... e6 {[%clk 0:02:55.9]} 8. Nf3 {[%clk 0:02:52.7]}
8... exd5 {[%clk 0:02:55.4]} 9. cxd5 {[%clk 0:02:47.7]} 9... a6 {[%clk
0:02:53.9]} 10. a4 {[%clk 0:02:46.6]} 10... Re8 {[%clk 0:02:53.2]} 11. Nd2
{[%clk 0:02:45.8]} 11... Nbd7 {[%clk 0:02:48.8]} 12. O-O {[%clk 0:02:45]} 12...
Ne5 {[%clk 0:02:45.6]} 13. h3 {[%clk 0:02:43.4]} 13... c4 {[%clk 0:01:59.4]} 14.
Qc2 {[%clk 0:02:06.4]} 14... Bd7 {[%clk 0:01:09.2]} 15. f4 {[%clk 0:01:56.4]}
15... Nd3 {[%clk 0:01:09.1]} 16. Nxc4 {[%clk 0:01:51.8]} 16... Nxb2 {[%clk
0:00:58.4]} 17. Nxd6 {[%clk 0:01:09]} 17... Bxa4 {[%clk 0:00:42.6]} 18. Qxb2
{[%clk 0:01:06.1]} 18... Qxd6 {[%clk 0:00:40.6]} 19. e5 {[%clk 0:01:00.9]} 19...
Rxe5 {[%clk 0:00:26.4]} 20. fxe5 {[%clk 0:01:00.7]} 20... Qxe5 {[%clk
0:00:27.3]} 21. Bf2 {[%clk 0:00:41.3]} 21... Bd7 {[%clk 0:00:22.3]} 22. Bf3
{[%clk 0:00:39.5]} 22... Rc8 {[%clk 0:00:16]} 23. Na4 {[%clk 0:00:34.2]} 23...
Qxb2 {[%clk 0:00:08.1]} 24. Nxb2 {[%clk 0:00:34]} 24... Bb5 {[%clk 0:00:08.8]}
25. Rfc1 {[%clk 0:00:32]} 25... Rd8 {[%clk 0:00:08.1]} 26. Rab1 {[%clk
0:00:28.9]} 26... Nxd5 {[%clk 0:00:06]} 27. Rd1 {[%clk 0:00:27.4]} 27... Bc6
{[%clk 0:00:04.9]} 28. Nc4 {[%clk 0:00:27.2]} 1-0

[Event "Early-Titled-Tuesday-Blitz-September-12-2023"]
[Site "Chess.com"]
[Date "2023.09.12"]
[Round "5"]
[White "profedechess93"]
[Black "AttilaTurzo"]
[Result "1-0"]
[WhiteElo "2666"]
[BlackElo "2468"]
[TimeControl "180+1"]
[EndTime "8:54:35 PDT"]
[Termination "profedechess93 won by resignation"]

1. e4 {[%clk 0:03:00.9]} 1... c5 {[%clk 0:02:41.9]} 2. Nf3 {[%clk 0:03:00.6]}
2... d6 {[%clk 0:02:41.5]} 3. Bb5+ {[%clk 0:03:00.5]} 3... Nd7 {[%clk
0:02:39.6]} 4. d4 {[%clk 0:03:00.2]} 4... cxd4 {[%clk 0:02:38.3]} 5. Qxd4 {[%clk
0:03:01.1]} 5... Nf6 {[%clk 0:02:37.1]} 6. Bg5 {[%clk 0:03:00.7]} 6... a6 {[%clk
0:02:25]} 7. Bxd7+ {[%clk 0:03:00.2]} 7... Nxd7 {[%clk 0:02:22.6]} 8. Nc3 {[%clk
0:03:01.1]} 8... h6 {[%clk 0:02:21.1]} 9. Bh4 {[%clk 0:02:56.9]} 9... Qb6 {[%clk
0:02:21.2]} 10. Qd2 {[%clk 0:02:49.1]} 10... e6 {[%clk 0:02:19.7]} 11. O-O-O
{[%clk 0:02:47.8]} 11... Nf6 {[%clk 0:02:06.2]} 12. Bxf6 {[%clk 0:01:34]} 12...
gxf6 {[%clk 0:02:05.8]} 13. Rhe1 {[%clk 0:01:34.8]} 13... h5 {[%clk 0:02:01.5]}
14. Kb1 {[%clk 0:01:34.1]} 14... Qc5 {[%clk 0:01:46.9]} 15. Nd4 {[%clk
0:01:23.9]} 15... Bh6 {[%clk 0:01:36.3]} 16. Qd3 {[%clk 0:01:16.5]} 16... Ke7
{[%clk 0:01:32.1]} 17. g3 {[%clk 0:00:50.4]} 17... Bd7 {[%clk 0:01:27.1]} 18. f4
{[%clk 0:00:49.5]} 18... Rac8 {[%clk 0:01:24]} 19. f5 {[%clk 0:00:49.8]} 19...
b5 {[%clk 0:01:18.6]} 20. fxe6 {[%clk 0:00:47.2]} 20... fxe6 {[%clk 0:01:19.5]}
21. Nb3 {[%clk 0:00:42.6]} 21... Qe5 {[%clk 0:01:08.8]} 22. a3 {[%clk
0:00:38.2]} 22... h4 {[%clk 0:01:06.9]} 23. Nd5+ {[%clk 0:00:38.2]} 23... Kf7
{[%clk 0:01:02.9]} 24. Nb6 {[%clk 0:00:36.9]} 24... Rc7 {[%clk 0:00:55.1]} 25.
Qxd6 {[%clk 0:00:36]} 25... Qxd6 {[%clk 0:00:56]} 26. Rxd6 {[%clk 0:00:36]}
26... Bc6 {[%clk 0:00:55.3]} 27. Nd4 {[%clk 0:00:32.5]} 27... Bb7 {[%clk
0:00:44]} 28. Nxe6 {[%clk 0:00:32.5]} 28... Re7 {[%clk 0:00:42.3]} 29. Nc5
{[%clk 0:00:29.2]} 29... hxg3 {[%clk 0:00:38.2]} 30. hxg3 {[%clk 0:00:30.1]}
30... Bg5 {[%clk 0:00:36]} 31. Nxb7 {[%clk 0:00:27.8]} 31... Rxb7 {[%clk
0:00:36.9]} 32. Nd5 {[%clk 0:00:28.1]} 32... Rh2 {[%clk 0:00:36]} 33. Rf1 {[%clk
0:00:27.9]} 33... Kg7 {[%clk 0:00:33.6]} 34. Rxa6 {[%clk 0:00:26.9]} 34... Rg2
{[%clk 0:00:31.9]} 35. Nxf6 {[%clk 0:00:27.2]} 35... Bxf6 {[%clk 0:00:30.6]} 36.
Rfxf6 {[%clk 0:00:26.8]} 36... Rxg3 {[%clk 0:00:30.5]} 37. Rfb6 {[%clk
0:00:27.2]} 37... Re7 {[%clk 0:00:29.7]} 38. Rxb5 {[%clk 0:00:26.5]} 38... Rxe4
{[%clk 0:00:30.3]} 39. Rb7+ {[%clk 0:00:26.6]} 39... Kg8 {[%clk 0:00:28.6]} 40.
Ra8+ {[%clk 0:00:26.5]} 1-0

[Event "Early-Titled-Tuesday-Blitz-September-12-2023"]
[Site "Chess.com"]
[Date "2023.09.12"]
[Round "5"]
[White "Byniolus"]
[Black "jeetjain"]
[Result "0-1"]
[WhiteElo "2786"]
[BlackElo "2588"]
[TimeControl "180+1"]
[EndTime "8:54:36 PDT"]
[Termination "jeetjain won on time"]

1. d4 {[%clk 0:03:00.9]} 1... e6 {[%clk 0:02:40.6]} 2. Nf3 {[%clk 0:03:00.9]}
2... b6 {[%clk 0:02:35.3]} 3. Bf4 {[%clk 0:03:00.6]} 3... Bb7 {[%clk 0:02:35.5]}
4. e3 {[%clk 0:03:01.3]} 4... Nf6 {[%clk 0:02:35.4]} 5. h3 {[%clk 0:03:01]} 5...
d5 {[%clk 0:02:33.8]} 6. Nbd2 {[%clk 0:03:00.5]} 6... Bd6 {[%clk 0:02:34.5]} 7.
Ne5 {[%clk 0:03:00.9]} 7... Nbd7 {[%clk 0:02:33.2]} 8. Bb5 {[%clk 0:02:55]} 8...
O-O {[%clk 0:02:31.8]} 9. O-O {[%clk 0:02:55]} 9... a6 {[%clk 0:02:28.7]} 10.
Bd3 {[%clk 0:02:55]} 10... c5 {[%clk 0:02:26.8]} 11. Nxf7 {[%clk 0:02:52]} 11...
Rxf7 {[%clk 0:02:24.7]} 12. Bxd6 {[%clk 0:02:52.4]} 12... Nf8 {[%clk 0:02:18.7]}
13. dxc5 {[%clk 0:02:31.7]} 13... bxc5 {[%clk 0:02:18.6]} 14. Bxc5 {[%clk
0:02:31.6]} 14... e5 {[%clk 0:02:18.9]} 15. Bxf8 {[%clk 0:02:17.4]} 15... Rxf8
{[%clk 0:02:18.8]} 16. Nb3 {[%clk 0:02:00.4]} 16... Rc8 {[%clk 0:02:18.2]} 17.
Rc1 {[%clk 0:01:56.3]} 17... e4 {[%clk 0:02:04.4]} 18. Be2 {[%clk 0:01:53.8]}
18... Nd7 {[%clk 0:02:02.6]} 19. Qd4 {[%clk 0:01:34.4]} 19... Qg5 {[%clk
0:01:51.9]} 20. c4 {[%clk 0:01:21.4]} 20... Ne5 {[%clk 0:01:50.1]} 21. cxd5
{[%clk 0:01:16.6]} 21... Nf3+ {[%clk 0:01:43.8]} 22. Bxf3 {[%clk 0:01:16.9]}
22... exf3 {[%clk 0:01:42.1]} 23. g3 {[%clk 0:00:59.9]} 23... Rxc1 {[%clk
0:01:39.7]} 24. Rxc1 {[%clk 0:00:58.3]} 24... Bc8 {[%clk 0:01:40.3]} 25. Kh2
{[%clk 0:00:34.8]} 25... Qh5 {[%clk 0:01:38.5]} 26. Qh4 {[%clk 0:00:25.4]} 26...
Qxd5 {[%clk 0:01:38]} 27. Nd4 {[%clk 0:00:23.5]} 27... Qxa2 {[%clk 0:01:35.8]}
28. Rc2 {[%clk 0:00:18.9]} 28... Qb1 {[%clk 0:01:33.2]} 29. g4 {[%clk
0:00:17.1]} 29... Qf1 {[%clk 0:01:27.6]} 30. Qg3 {[%clk 0:00:17.1]} 30... Bb7
{[%clk 0:01:26.3]} 31. Qg1 {[%clk 0:00:16.1]} 31... Qd3 {[%clk 0:01:23.9]} 32.
Qc1 {[%clk 0:00:14.8]} 32... h5 {[%clk 0:01:19.5]} 33. Rc7 {[%clk 0:00:14.5]}
33... Qe4 {[%clk 0:01:17.5]} 34. Qc4+ {[%clk 0:00:12.2]} 34... Bd5 {[%clk
0:01:14.6]} 35. Qc2 {[%clk 0:00:12.6]} 35... Qe5+ {[%clk 0:01:14.5]} 36. Kg1
{[%clk 0:00:10.4]} 36... hxg4 {[%clk 0:01:15.2]} 37. hxg4 {[%clk 0:00:07.2]}
37... Qg5 {[%clk 0:01:15.5]} 38. Kf1 {[%clk 0:00:05.3]} 38... Qxg4 {[%clk
0:01:15]} 39. Qc5 {[%clk 0:00:04.1]} 39... Qg2+ {[%clk 0:01:11.9]} 40. Ke1
{[%clk 0:00:04.8]} 40... Qg1+ {[%clk 0:01:12.8]} 41. Kd2 {[%clk 0:00:05.4]}
41... Qxf2+ {[%clk 0:01:13.7]} 42. Kc3 {[%clk 0:00:04.4]} 42... Qxe3+ {[%clk
0:01:13.1]} 43. Kb4 {[%clk 0:00:04.5]} 43... Bf7 {[%clk 0:01:07.2]} 44. Ka5
{[%clk 0:00:01.8]} 44... f2 {[%clk 0:01:06.7]} 45. Nf5 {[%clk 0:00:01.2]} 45...
Qe1+ {[%clk 0:01:04]} 0-1